fUSD/lending_fUSD_20250105
["ID","MTS","AMOUNT","RATE_DAILY","PERIOD"]
[347773375,1736098242119,-983.74,9.036e-05,2]
[347773376,1736098242128,-594.88,9.036e-05,2]
[347773377,1736098242137,-695.34,9.036e-05,2]
[347773378,1736098242147,-500.0,9.036e-05,2]
[347773379,1736098242156,-1006.19,9.036e-05,2]
[347773380,1736098242166,-1107.43,9.036e-05,2]
[347773381,1736098242176,-522.14,9.036e-05,2]
[347773382,1736098242185,-835.7,9.036e-05,2]
[347773383,1736098242195,-500.0,9.036e-05,2]
[347773384,1736098242204,-500.0,9.036e-05,2]
[347773385,1736098242213,-500.0,9.036e-05,2]
[347773387,1736098242222,-814.04,9.036e-05,2]
[347773389,1736098242231,-721.27,9.036e-05,2]
[347773391,1736098242241,-500.0,9.036e-05,2]
[347773392,1736098242250,-500.0,9.038e-05,2]
[347773394,1736098242259,-1026.58,9.038e-05,2]
[347773396,1736098242269,-812.38,9.038e-05,2]
[347773398,1736098242278,-2528.72,9.038e-05,2]
[347773400,1736098242287,-614.02,9.038e-05,2]
[347773402,1736098242296,-500.0,9.038e-05,2]
[347773404,1736098242305,-691.12,9.038e-05,2]
[347773406,1736098242314,-1610.49,9.038e-05,2]
[347773408,1736098242325,-500.0,9.038e-05,2]
[347773410,1736098242335,-563.53,9.038e-05,2]
[347773412,1736098242344,-757.04,9.038e-05,2]
[347773414,1736098242353,-691.96,9.038e-05,2]
[347773416,1736098242363,-1011.38,9.038e-05,2]
[347773418,1736098242372,-1000.0,9.038e-05,2]
[347773420,1736098242381,-500.0,9.038e-05,2]
[347773422,1736098242391,-500.0,9.038e-05,2]
[347773424,1736098242400,-1244.56,9.038e-05,2]
[347773426,1736098242409,-1082.96,9.038e-05,2]
[347773428,1736098242419,-500.0,9.04e-05,2]
[347773430,1736098242429,-714.97,9.04e-05,2]
[347773432,1736098242439,-500.0,9.04e-05,2]
[347773434,1736098242448,-500.0,9.04e-05,2]
[347773436,1736098242457,-500.0,9.04e-05,2]
[347773438,1736098242467,-1475.02,9.04e-05,2]
[347773440,1736098242476,-500.0,9.04e-05,2]
[347773442,1736098242486,-500.0,9.04e-05,2]
[347773444,1736098242496,-500.0,9.04e-05,2]
[347773447,1736098242505,-500.0,9.04e-05,2]
[347773449,1736098242514,-753.68,9.04e-05,2]
[347773451,1736098242524,-500.0,9.04e-05,2]
[347773453,1736098242533,-500.0,9.04e-05,2]
[347773455,1736098242543,-500.0,9.04e-05,2]
[347773457,1736098242552,-2260.84,9.04e-05,2]
[347773459,1736098242562,-500.0,9.04e-05,2]
[347773461,1736098242572,-500.0,9.04e-05,2]
[347773463,1736098242583,-383.39,9.04e-05,2]
[347773465,1736098242593,-500.0,9.04e-05,2]
[347773467,1736098242602,-500.0,9.04e-05,2]
[347773469,1736098242612,-500.0,9.04e-05,2]
[347773471,1736098242623,-1577.66,9.04e-05,2]
[347773473,1736098242632,-500.0,9.04e-05,2]
[347773475,1736098242641,-585.86,9.04e-05,2]
[347773477,1736098242650,-500.0,9.04e-05,2]
[347773479,1736098242661,-500.0,9.04e-05,2]
[347773481,1736098242670,-500.0,9.04e-05,2]
[347773483,1736098242680,-500.0,9.04e-05,2]
[347773485,1736098242690,-500.0,9.04e-05,2]
[347773487,1736098242699,-500.0,9.04e-05,2]
[347773489,1736098242709,-500.0,9.04e-05,2]
[347773491,1736098242719,-500.0,9.04e-05,2]
[347773493,1736098242729,-500.0,9.04e-05,2]
[347773495,1736098242739,-833.84,9.04e-05,2]
[347773497,1736098242748,-500.0,9.04e-05,2]
[347773499,1736098242758,-500.0,9.04e-05,2]
[347773501,1736098242767,-535.83,9.04e-05,2]
[347773503,1736098242777,-500.0,9.04e-05,2]
[347773505,1736098242788,-2188.39,9.04e-05,2]
[347773507,1736098242797,-500.0,9.04e-05,2]
[347773509,1736098242808,-500.0,9.04e-05,2]
[347773511,1736098242818,-500.0,9.04e-05,2]
[347773513,1736098242828,-500.0,9.04e-05,2]
[347773515,1736098242838,-500.0,9.04e-05,2]
[347773517,1736098242849,-536.2,9.04e-05,2]
[347773519,1736098242859,-500.0,9.04e-05,2]
[347773521,1736098242872,-500.0,9.04e-05,2]
[347773523,1736098242881,-500.0,9.04e-05,2]
[347773525,1736098242891,-500.0,9.04e-05,2]
[347773527,1736098242901,-500.0,9.04e-05,2]
[347773529,1736098242914,-500.0,9.04e-05,2]
[347773531,1736098242923,-568.82,9.04e-05,2]
[347773533,1736098242932,-617.64,9.04e-05,2]
[347773535,1736098242943,-500.0,9.04e-05,2]
[347773537,1736098242952,-1151.44,9.04e-05,2]
[347773539,1736098242961,-840.38,9.04e-05,2]
[347773542,1736098242971,-1700.05,9.04e-05,2]
[347773545,1736098242981,-200.0,9.041e-05,2]
[347773548,1736098242990,-215.91,9.048e-05,2]
[347773551,1736098243001,-500.0,9.072e-05,2]
[347773553,1736098243011,-1319.1,9.136e-05,2]
[347773555,1736098243021,-1440.49,9.136e-05,2]
[347773557,1736098243030,-530.53,9.136e-05,2]
[347773559,1736098243039,-500.0,9.136e-05,2]
[347773561,1736098243049,-1222.34,9.136e-05,2]
[347773563,1736098243058,-56.21918736,9.136e-05,2]
[347773572,1736098244237,-237.01,8.863e-05,2]
[347773573,1736098244247,-105.55216287,9.136e-05,2]
[347773574,1736098244259,-338.22864977,9.136e-05,2]
[347773575,1736098244268,-859.36,9.136e-05,2]
[347773576,1736098244278,-500.0,9.136e-05,2]
[347773577,1736098244288,-983.7,9.136e-05,2]
[347773578,1736098244297,-500.0,9.136e-05,2]
[347773579,1736098244307,-500.0,9.136e-05,2]
[347773580,1736098244316,-643.62,9.136e-05,2]
[347773581,1736098244327,-1987.06,9.136e-05,2]
[347773582,1736098244336,-191.63,9.137e-05,2]
[347773583,1736098244346,-500.0,9.137e-05,2]
[347773584,1736098244356,-21.32176944,9.137e-05,2]
[347773585,1736098244368,-322.48823056,9.137e-05,2]
[347773586,1736098244378,-550.66,9.137e-05,2]
[347773587,1736098244388,-375.58,9.137e-05,2]
[347773588,1736098244399,-236.54,9.137e-05,2]
[347773589,1736098244408,-331.91,9.137e-05,2]
[347773590,1736098244417,-422.01,9.137e-05,2]
[347773591,1736098244427,-500.0,9.137e-05,2]
[347773592,1736098244436,-500.0,9.137e-05,2]
[347773593,1736098244446,-500.0,9.137e-05,2]
[347773594,1736098244455,-500.0,9.137e-05,2]
[347773595,1736098244464,-500.0,9.137e-05,2]
[347773596,1736098244474,-500.0,9.137e-05,2]
[347773597,1736098244484,-500.0,9.137e-05,2]
[347773598,1736098244493,-500.0,9.137e-05,2]
[347773599,1736098244502,-500.0,9.137e-05,2]
[347773600,1736098244512,-274.33,9.137e-05,2]
[347773601,1736098244521,-500.0,9.137e-05,2]
[347773602,1736098244530,-500.0,9.137e-05,2]
[347773603,1736098244539,-500.0,9.137e-05,2]
[347773604,1736098244548,-500.0,9.137e-05,2]
[347773605,1736098244557,-500.0,9.137e-05,2]
[347773606,1736098244567,-500.0,9.137e-05,2]
[347773607,1736098244576,-500.0,9.137e-05,2]
[347773608,1736098244585,-500.0,9.137e-05,2]
[347773609,1736098244594,-500.0,9.137e-05,2]
[347773610,1736098244604,-500.0,9.137e-05,2]
[347773611,1736098244613,-500.0,9.137e-05,2]
[347773612,1736098244623,-500.0,9.137e-05,2]
[347773613,1736098244633,-500.0,9.137e-05,2]
[347773614,1736098244642,-316.33,9.137e-05,2]
[347773615,1736098244651,-500.0,9.137e-05,2]
[347773616,1736098244661,-500.0,9.137e-05,2]
[347773617,1736098244676,-500.0,9.137e-05,2]
[347773618,1736098244685,-500.0,9.137e-05,2]
[347773619,1736098244695,-500.0,9.137e-05,2]
[347773620,1736098244705,-500.0,9.137e-05,2]
[347773621,1736098244714,-500.0,9.137e-05,2]
[347773622,1736098244723,-500.0,9.137e-05,2]
[347773623,1736098244733,-500.0,9.137e-05,2]
[347773624,1736098244743,-500.0,9.137e-05,2]
[347773625,1736098244753,-214.00068668,9.137e-05,2]
[347773626,1736098244775,-285.99931332,9.137e-05,2]
[347773627,1736098244785,-319.31035625,9.137e-05,2]
[347773628,1736098244797,-180.68964375,9.137e-05,2]
[347773629,1736098244808,-394.89221208,9.137e-05,2]
[347773630,1736098244823,-105.10778792,9.137e-05,2]
[347773631,1736098244834,-500.0,9.137e-05,2]
[347773632,1736098244843,-500.0,9.137e-05,2]
[347773633,1736098244853,-500.0,9.137e-05,2]
[347773634,1736098244863,-500.0,9.137e-05,2]
[347773635,1736098244875,-500.0,9.137e-05,2]
[347773636,1736098244885,-500.0,9.137e-05,2]
[347773637,1736098244895,-500.0,9.137e-05,2]
[347773638,1736098244904,-500.0,9.137e-05,2]
[347773639,1736098244914,-500.0,9.137e-05,2]
[347773640,1736098244923,-298.59056088,9.137e-05,2]
[347773641,1736098244934,-46.5030316,9.137e-05,2]
[347773642,1736098244943,-500.0,9.137e-05,2]
[347773643,1736098244954,-500.0,9.137e-05,2]
[347773644,1736098244963,-427.0982884,9.137e-05,2]
[347773645,1736098244975,-72.9017116,9.137e-05,2]
[347773646,1736098244984,-506.52,9.137e-05,2]
[347773647,1736098244994,-500.0,9.137e-05,2]
[347773648,1736098245003,-500.0,9.137e-05,2]
[347773649,1736098245013,-500.0,9.137e-05,2]
[347773650,1736098245022,-237.99901904,9.137e-05,2]
[347773651,1736098245032,-500.0,9.137e-05,2]
[347773652,1736098245041,-500.0,9.137e-05,2]
[347773653,1736098245051,-500.0,9.137e-05,2]
[347773654,1736098245060,-500.0,9.137e-05,2]
[347773655,1736098245069,-500.0,9.137e-05,2]
[347773656,1736098245079,-500.0,9.137e-05,2]
[347773657,1736098245089,-500.0,9.137e-05,2]
[347773658,1736098245099,-500.0,9.137e-05,2]
[347773659,1736098245109,-503.72,9.137e-05,2]
[347773660,1736098245119,-500.0,9.137e-05,2]
[347773661,1736098245128,-276.07435936,9.137e-05,2]
[347773662,1736098245140,-223.92564064,9.137e-05,2]
[347773663,1736098245150,-500.0,9.137e-05,2]
[347773664,1736098245160,-527.39,9.137e-05,2]
[347773665,1736098245169,-500.0,9.137e-05,2]
[347773666,1736098245179,-151.85,9.137e-05,2]
[347773667,1736098245188,-500.0,9.137e-05,2]
[347773668,1736098245197,-500.0,9.137e-05,2]
[347773669,1736098245206,-500.0,9.137e-05,2]
[347773670,1736098245216,-500.0,9.137e-05,2]
[347773671,1736098245225,-500.0,9.137e-05,2]
[347773672,1736098245235,-500.0,9.137e-05,2]
[347773673,1736098245245,-328.06,9.137e-05,2]
[347773674,1736098245256,-236.12,9.137e-05,2]
[347773675,1736098245268,-500.0,9.137e-05,2]
[347773676,1736098245280,-151.95,9.137e-05,2]
[347773677,1736098245291,-500.0,9.137e-05,2]
[347773678,1736098245301,-321.56,9.137e-05,2]
[347773679,1736098245311,-500.0,9.137e-05,2]
[347773680,1736098245320,-500.0,9.137e-05,2]
[347773681,1736098245331,-500.0,9.137e-05,2]
[347773682,1736098245340,-500.0,9.137e-05,2]
[347773683,1736098245350,-384.67,9.137e-05,2]
[347773684,1736098245360,-500.0,9.137e-05,2]
[347773685,1736098245370,-500.0,9.137e-05,2]
[347773686,1736098245379,-500.0,9.137e-05,2]
[347773687,1736098245389,-496.65,9.137e-05,2]
[347773688,1736098245399,-219.29,9.137e-05,2]
[347773689,1736098245409,-500.0,9.137e-05,2]
[347773690,1736098245419,-500.0,9.137e-05,2]
[347773691,1736098245428,-500.0,9.137e-05,2]
[347773692,1736098245439,-422.03,9.137e-05,2]
[347773693,1736098245449,-500.0,9.137e-05,2]
[347773694,1736098245459,-500.0,9.137e-05,2]
[347773695,1736098245469,-500.0,9.137e-05,2]
[347773696,1736098245479,-500.0,9.137e-05,2]
[347773697,1736098245489,-500.0,9.137e-05,2]
[347773698,1736098245499,-500.0,9.137e-05,2]
[347773699,1736098245508,-330.08,9.137e-05,2]
[347773700,1736098245518,-500.0,9.137e-05,2]
[347773701,1736098245527,-500.0,9.137e-05,2]
[347773702,1736098245537,-500.0,9.137e-05,2]
[347773703,1736098245547,-500.0,9.137e-05,2]
[347773704,1736098245556,-473.04,9.137e-05,2]
[347773705,1736098245565,-500.0,9.137e-05,2]
[347773706,1736098245575,-618.86,9.137e-05,2]
[347773707,1736098245585,-500.0,9.137e-05,2]
[347773708,1736098245595,-272.69,9.137e-05,2]
[347773709,1736098245604,-194.35,9.137e-05,2]
[347773710,1736098245615,-500.0,9.137e-05,2]
[347773711,1736098245625,-500.0,9.137e-05,2]
[347773712,1736098245635,-500.0,9.137e-05,2]
[347773713,1736098245646,-471.287831,9.137e-05,2]
[347773714,1736098245655,-500.0,9.137e-05,2]
[347773715,1736098245665,-500.0,9.137e-05,2]
[347773716,1736098245675,-500.0,9.137e-05,2]
[347773717,1736098245684,-500.0,9.137e-05,2]
[347773718,1736098245693,-500.0,9.137e-05,2]
[347773719,1736098245703,-500.0,9.137e-05,2]
[347773720,1736098245712,-500.0,9.137e-05,2]
[347773721,1736098245721,-500.0,9.137e-05,2]
[347773722,1736098245730,-500.0,9.137e-05,2]
[347773723,1736098245739,-635.188407,9.137e-05,2]
[347773724,1736098245749,-559.37,9.137e-05,2]
[347773725,1736098245758,-500.0,9.137e-05,2]
[347773726,1736098245767,-500.0,9.137e-05,2]
[347773727,1736098245777,-500.0,9.137e-05,2]
[347773728,1736098245786,-500.0,9.137e-05,2]
[347773729,1736098245795,-613.59,9.137e-05,2]
[347773730,1736098245805,-173.16,9.137e-05,2]
[347773731,1736098245814,-500.0,9.137e-05,2]
[347773732,1736098245824,-500.0,9.137e-05,2]
[347773733,1736098245835,-500.0,9.137e-05,2]
[347773734,1736098245845,-373.37,9.137e-05,2]
[347773735,1736098245854,-500.0,9.137e-05,2]
[347773736,1736098245866,-500.0,9.137e-05,2]
[347773737,1736098245875,-500.0,9.137e-05,2]
[347773738,1736098245886,-500.0,9.137e-05,2]
[347773739,1736098245895,-500.0,9.137e-05,2]
[347773740,1736098245905,-500.0,9.137e-05,2]
[347773741,1736098245914,-500.0,9.137e-05,2]
[347773742,1736098245924,-500.0,9.137e-05,2]
[347773743,1736098245934,-711.7,9.137e-05,2]
[347773744,1736098245943,-529.54,9.137e-05,2]
[347773745,1736098245953,-500.0,9.137e-05,2]
[347773746,1736098245963,-470.14,9.137e-05,2]
[347773747,1736098245973,-500.0,9.137e-05,2]
[347773748,1736098245983,-500.0,9.137e-05,2]
[347773750,1736098245992,-609.01,9.137e-05,2]
[347773751,1736098246002,-500.0,9.137e-05,2]
[347773753,1736098246018,-500.0,9.137e-05,2]
[347773755,1736098246028,-2279.03,9.137e-05,2]
[347773757,1736098246037,-579.56,9.137e-05,2]
[347773759,1736098246047,-500.0,9.137e-05,2]
[347773761,1736098246057,-500.0,9.137e-05,2]
[347773762,1736098246067,-500.0,9.137e-05,2]
[347773764,1736098246076,-500.0,9.137e-05,2]
[347773765,1736098246088,-435.57,9.137e-05,2]
[347773766,1736098246098,-1719.59,9.137e-05,2]
[347773767,1736098246107,-500.0,9.137e-05,2]
[347773768,1736098246117,-500.0,9.137e-05,2]
[347773769,1736098246126,-500.0,9.137e-05,2]
[347773770,1736098246135,-286.23,9.137e-05,2]
[347773771,1736098246145,-500.0,9.137e-05,2]
[347773772,1736098246154,-325.82,9.137e-05,2]
[347773773,1736098246163,-500.0,9.137e-05,2]
[347773774,1736098246173,-500.0,9.137e-05,2]
[347773775,1736098246182,-999.4,9.137e-05,2]
[347773776,1736098246192,-500.0,9.137e-05,2]
[347773777,1736098246202,-500.0,9.137e-05,2]
[347773778,1736098246212,-500.0,9.137e-05,2]
[347773779,1736098246221,-500.0,9.137e-05,2]
[347773780,1736098246232,-589.63,9.137e-05,2]
[347773781,1736098246253,-854.68,9.137e-05,2]
[347773782,1736098246264,-339.28,9.137e-05,2]
[347773783,1736098246275,-554.87,9.137e-05,2]
[347773784,1736098246284,-500.0,9.137e-05,2]
[347773785,1736098246294,-500.0,9.137e-05,2]
[347773786,1736098246304,-565.03,9.137e-05,2]
[347773787,1736098246314,-548.59,9.137e-05,2]
[347773788,1736098246324,-500.0,9.137e-05,2]
[347773789,1736098246335,-500.0,9.137e-05,2]
[347773790,1736098246345,-1103.19,9.137e-05,2]
[347773791,1736098246355,-500.0,9.137e-05,2]
[347773792,1736098246365,-500.0,9.137e-05,2]
[347773793,1736098246375,-500.0,9.137e-05,2]
[347773794,1736098246385,-500.0,9.137e-05,2]
[347773795,1736098246394,-500.0,9.137e-05,2]
[347773796,1736098246404,-500.0,9.137e-05,2]
[347773797,1736098246414,-500.0,9.137e-05,2]
[347773798,1736098246423,-500.0,9.137e-05,2]
[347773799,1736098246434,-551.87,9.137e-05,2]
[347773800,1736098246444,-500.0,9.137e-05,2]
[347773801,1736098246454,-500.0,9.137e-05,2]
[347773802,1736098246463,-425.63988129,9.137e-05,2]
[347773803,1736098246484,-74.36011871,9.137e-05,2]
[347773804,1736098246494,-688.62,9.137e-05,2]
[347773805,1736098246504,-500.0,9.137e-05,2]
[347773806,1736098246514,-500.0,9.137e-05,2]
[347773807,1736098246526,-500.0,9.137e-05,2]
[347773808,1736098246542,-747.39,9.137e-05,2]
[347773809,1736098246552,-486.08156212,9.137e-05,2]
[347773810,1736098246561,-500.0,9.137e-05,2]
[347773811,1736098246570,-500.0,9.137e-05,2]
[347773812,1736098246580,-575.03,9.137e-05,2]
[347773813,1736098246591,-587.6602975,9.137e-05,2]
[347773814,1736098246601,-500.0,9.137e-05,2]
[347773815,1736098246611,-500.0,9.137e-05,2]
[347773816,1736098246621,-249.95,9.137e-05,2]
[347773817,1736098246631,-500.0,9.137e-05,2]
[347773818,1736098246641,-613.5,9.137e-05,2]
[347773819,1736098246652,-684.88,9.137e-05,2]
[347773820,1736098246667,-181.5,9.137e-05,2]
[347773821,1736098246682,-200.79,9.137e-05,2]
[347773822,1736098246696,-500.0,9.137e-05,2]
[347773823,1736098246711,-500.0,9.137e-05,2]
[347773824,1736098246722,-707.71,9.137e-05,2]
[347773825,1736098246734,-1326.02,9.137e-05,2]
[347773827,1736098246748,-500.0,9.137e-05,2]
[347773829,1736098246761,-706.33,9.137e-05,2]
[347773831,1736098246773,-615.66,9.137e-05,2]
[347773833,1736098246786,-500.0,9.137e-05,2]
[347773834,1736098246799,-355.86,9.137e-05,2]
[347773835,1736098246813,-500.0,9.137e-05,2]
[347773836,1736098246826,-500.0,9.137e-05,2]
[347773837,1736098246842,-273.73,9.137e-05,2]
[347773838,1736098246857,-500.0,9.137e-05,2]
[347773839,1736098246874,-505.14,9.137e-05,2]
[347773840,1736098246885,-500.0,9.137e-05,2]
[347773841,1736098246896,-1393.88,9.137e-05,2]
[347773842,1736098246909,-500.0,9.137e-05,2]
[347773843,1736098246923,-500.0,9.137e-05,2]
[347773844,1736098246936,-500.0,9.137e-05,2]
[347773845,1736098246949,-569.29,9.137e-05,2]
[347773846,1736098246961,-500.0,9.137e-05,2]
[347773847,1736098246973,-500.0,9.137e-05,2]
[347773848,1736098246986,-169.7,9.137e-05,2]
[347773849,1736098246998,-500.0,9.137e-05,2]
[347773850,1736098247011,-500.0,9.137e-05,2]
[347773851,1736098247024,-500.0,9.137e-05,2]
[347773852,1736098247035,-221.54,9.137e-05,2]
[347773853,1736098247048,-500.0,9.137e-05,2]
[347773854,1736098247061,-1622.54,9.137e-05,2]
[347773855,1736098247073,-500.0,9.138e-05,2]
[347773856,1736098247086,-458.87,9.138e-05,2]
[347773857,1736098247098,-500.0,9.138e-05,2]
[347773858,1736098247110,-500.0,9.138e-05,2]
[347773859,1736098247121,-452.7,9.138e-05,2]
[347773860,1736098247133,-276.56,9.138e-05,2]
[347773861,1736098247146,-500.0,9.138e-05,2]
[347773862,1736098247159,-500.0,9.138e-05,2]
[347773863,1736098247172,-500.0,9.138e-05,2]
[347773864,1736098247184,-1000.0,9.247e-05,2]
[347773865,1736098247196,-549.55,9.31e-05,2]
[347773866,1736098247207,-983.74,9.31e-05,2]
[347773867,1736098247218,-594.88,9.31e-05,2]
[347773868,1736098247229,-695.34,9.31e-05,2]
[347773869,1736098247239,-1006.19,9.31e-05,2]
[347773870,1736098247252,-1107.43,9.31e-05,2]
[347773871,1736098247266,-522.14,9.31e-05,2]
[347773872,1736098247277,-835.7,9.31e-05,2]
[347773873,1736098247288,-500.0,9.31e-05,2]
[347773874,1736098247298,-398.1,9.31e-05,2]
[347773875,1736098247309,-500.0,9.31e-05,2]
[347773876,1736098247319,-814.04,9.31e-05,2]
[347773877,1736098247333,-721.27,9.31e-05,2]
[347773878,1736098247346,-500.0,9.31e-05,2]
[347773879,1736098247359,-500.0,9.312e-05,2]
[347773880,1736098247370,-1026.58,9.312e-05,2]
[347773881,1736098247381,-812.38,9.312e-05,2]
[347773882,1736098247391,-2528.72,9.312e-05,2]
[347773883,1736098247402,-614.02,9.312e-05,2]
[347773884,1736098247413,-500.0,9.312e-05,2]
[347773885,1736098247424,-691.12,9.312e-05,2]
[347773886,1736098247435,-1610.49,9.312e-05,2]
[347773887,1736098247450,-500.0,9.312e-05,2]
[347773888,1736098247462,-563.53,9.312e-05,2]
[347773889,1736098247474,-757.04,9.312e-05,2]
[347773890,1736098247486,-691.96,9.312e-05,2]
[347773891,1736098247498,-1011.38,9.312e-05,2]
[347773892,1736098247510,-1000.0,9.312e-05,2]
[347773893,1736098247521,-500.0,9.312e-05,2]
[347773894,1736098247533,-500.0,9.312e-05,2]
[347773895,1736098247544,-1244.56,9.312e-05,2]
[347773896,1736098247557,-1082.96,9.312e-05,2]
[347773897,1736098247568,-500.0,9.314e-05,2]
[347773898,1736098247582,-714.97,9.314e-05,2]
[347773899,1736098247594,-500.0,9.314e-05,2]
[347773900,1736098247605,-500.0,9.314e-05,2]
[347773901,1736098247617,-500.0,9.314e-05,2]
[347773902,1736098247628,-1475.02,9.314e-05,2]
[347773903,1736098247639,-500.0,9.314e-05,2]
[347773904,1736098247651,-500.0,9.314e-05,2]
[347773905,1736098247661,-500.0,9.314e-05,2]
[347773906,1736098247672,-500.0,9.314e-05,2]
[347773907,1736098247685,-753.68,9.314e-05,2]
[347773908,1736098247696,-500.0,9.314e-05,2]
[347773909,1736098247707,-500.0,9.314e-05,2]
[347773910,1736098247720,-500.0,9.314e-05,2]
[347773911,1736098247731,-2260.84,9.314e-05,2]
[347773912,1736098247742,-500.0,9.314e-05,2]
[347773913,1736098247753,-500.0,9.314e-05,2]
[347773914,1736098247764,-500.0,9.314e-05,2]
[347773915,1736098247775,-500.0,9.314e-05,2]
[347773916,1736098247786,-500.0,9.314e-05,2]
[347773917,1736098247797,-1577.66,9.314e-05,2]
[347773918,1736098247808,-500.0,9.314e-05,2]
[347773919,1736098247819,-500.0,9.314e-05,2]
[347773920,1736098247831,-500.0,9.314e-05,2]
[347773921,1736098247842,-500.0,9.314e-05,2]
[347773922,1736098247853,-500.0,9.314e-05,2]
[347773923,1736098247867,-500.0,9.314e-05,2]
[347773924,1736098247879,-500.0,9.314e-05,2]
[347773925,1736098247890,-500.0,9.314e-05,2]
[347773926,1736098247901,-500.0,9.314e-05,2]
[347773927,1736098247913,-500.0,9.314e-05,2]
[347773928,1736098247923,-833.84,9.314e-05,2]
[347773929,1736098247935,-500.0,9.314e-05,2]
[347773930,1736098247946,-500.0,9.314e-05,2]
[347773931,1736098247958,-535.83,9.314e-05,2]
[347773932,1736098247970,-414.90282354,9.314e-05,2]
[347773933,1736098247982,-2188.39,9.314e-05,2]
[347773934,1736098247993,-489.8707614,9.314e-05,2]
[347773935,1736098248005,-500.0,9.314e-05,2]
[347773936,1736098248015,-500.0,9.314e-05,2]
[347773937,1736098248027,-500.0,9.314e-05,2]
[347773938,1736098248038,-500.0,9.314e-05,2]
[347773939,1736098248049,-536.2,9.314e-05,2]
[347773940,1736098248061,-500.0,9.314e-05,2]
[347773941,1736098248072,-500.0,9.314e-05,2]
[347773942,1736098248084,-500.0,9.314e-05,2]
[347773943,1736098248095,-500.0,9.314e-05,2]
[347773944,1736098248107,-180.21640701,9.314e-05,2]
[347773945,1736098248118,-500.0,9.314e-05,2]
[347773946,1736098248129,-568.82,9.314e-05,2]
[347773947,1736098248140,-617.64,9.314e-05,2]
[347773948,1736098248153,-500.0,9.314e-05,2]
[347773949,1736098248164,-1151.44,9.314e-05,2]
[347773950,1736098248175,-840.38,9.314e-05,2]
[347773951,1736098248186,-1700.05,9.314e-05,2]
[347773952,1736098248199,-150.0,9.333e-05,2]
[347773953,1736098248209,-1319.1,9.41e-05,2]
[347773954,1736098248220,-1440.49,9.41e-05,2]
[347773955,1736098248232,-530.53,9.41e-05,2]
[347773956,1736098248243,-500.0,9.41e-05,2]
[347773957,1736098248255,-1222.34,9.41e-05,2]
[347773958,1736098248266,-500.0,9.41e-05,2]
[347773959,1736098248278,-859.36,9.41e-05,2]
[347773960,1736098248289,-500.0,9.41e-05,2]
[347773961,1736098248300,-983.7,9.41e-05,2]
[347773962,1736098248312,-500.0,9.41e-05,2]
[347773963,1736098248323,-643.62,9.41e-05,2]
[347773964,1736098248335,-1987.06,9.41e-05,2]
[347773965,1736098248346,-500.0,9.411e-05,2]
[347773966,1736098248357,-500.0,9.411e-05,2]
[347773967,1736098248367,-500.0,9.411e-05,2]
[347773968,1736098248378,-155.81,9.411e-05,2]
[347773969,1736098248390,-500.0,9.411e-05,2]
[347773970,1736098248401,-500.0,9.411e-05,2]
[347773971,1736098248412,-500.0,9.411e-05,2]
[347773972,1736098248423,-500.0,9.411e-05,2]
[347773973,1736098248435,-500.0,9.411e-05,2]
[347773974,1736098248446,-500.0,9.411e-05,2]
[347773975,1736098248457,-500.0,9.411e-05,2]
[347773976,1736098248468,-500.0,9.411e-05,2]
[347773977,1736098248480,-500.0,9.411e-05,2]
[347773978,1736098248491,-500.0,9.411e-05,2]
[347773979,1736098248502,-535.69,9.411e-05,2]
[347773980,1736098248513,-500.0,9.411e-05,2]
[347773981,1736098248524,-500.0,9.411e-05,2]
[347773982,1736098248535,-500.0,9.411e-05,2]
[347773983,1736098248546,-500.0,9.411e-05,2]
[347773984,1736098248557,-500.0,9.411e-05,2]